bitfinex-derivatives/quotes_ETHF0:USTF0_20240829
["timestamp","ask_amount","ask_price","bid_price","bid_amount"]
[1724902426636,7.0932075,2530.1,2530.0,0.00592768]
[1724902427340,3.5355475,2530.1,2530.0,0.00592768]
[1724902427539,7.4883475,2530.1,2530.0,0.00592768]
[1724902427840,7.4883475,2530.1,2529.5,0.39522]
[1724902427841,0.39519,2529.8,2529.5,0.39522]
[1724902428141,14.0810575,2530.1,2529.5,0.39522]
[1724902428142,0.7425,2529.7,2529.5,0.39522]
[1724902428339,0.3819,2529.6,2529.5,0.39522]
[1724902428739,3.2078,2530.0,2529.8,0.39517]
[1724902428951,0.3819,2529.9,2529.8,0.39517]
[1724902429442,3.1538075,2529.9,2529.8,0.39517]
[1724902435847,3.1538075,2529.9,2529.6,41.9201]
[1724902436046,3.1538075,2529.9,2529.8,0.39518]
[1724902436751,2.7719075,2529.9,2529.8,0.39518]
[1724902441453,7.1198775,2529.9,2529.6,0.39521]
[1724902441657,0.39519,2529.8,2529.5,0.39523]
[1724902441861,0.39519,2529.8,2529.3,0.00592768]
[1724902441862,0.3822,2529.7,2529.6,0.39522]
[1724902442045,2.7719075,2529.9,2529.5,1.42]
[1724902442250,2.7719075,2529.9,2529.6,1.1229]
[1724902442656,2.7719075,2529.9,2529.8,0.39518]
[1724902446869,2.7719075,2529.9,2529.7,0.39519]
[1724902447459,2.7719075,2529.9,2529.8,0.39518]
[1724902450965,3.5658,2530.1,2530.0,0.39515]
[1724902451179,6.3377075,2530.1,2530.0,0.39515]
[1724902451472,3.5658,2530.1,2530.0,0.39515]
[1724902452079,0.36422768,2530.2,2530.1,0.39514]
[1724902452080,0.00592768,2530.2,2530.1,0.39514]
[1724902452363,2.77783518,2530.2,2530.1,1.81514]
[1724902453758,0.00592768,2530.2,2530.1,1.81514]
[1724902455073,0.00592768,2530.2,2530.1,0.39514]
[1724902455572,3.16353518,2530.2,2529.9,3.60296]
[1724902455761,3.16353518,2530.2,2529.8,1.42]
[1724902456069,3.16353518,2530.2,2530.0,0.39515]
[1724902457463,3.16353518,2530.2,2529.9,0.39516]
[1724902457967,3.16353518,2530.2,2529.9,0.39517]
[1724902460474,3.55865518,2530.2,2529.8,0.39517]
[1724902460669,0.39515,2530.1,2529.8,0.39518]
[1724902461064,0.3601,2530.0,2529.8,0.39518]
[1724902461279,0.3877,2529.9,2529.8,0.39518]
[1724902461775,0.3877,2529.9,2529.6,1.42]
[1724902461776,3.1596075,2529.9,2529.7,0.39519]
[1724902461979,0.3515,2529.8,2529.5,0.39522]
[1724902462179,0.3515,2529.8,2529.6,0.39521]
[1724902462476,3.1234075,2529.8,2529.7,0.3952]
[1724902463181,3.1234075,2529.8,2529.6,0.39521]
[1724902463371,3.1234075,2529.8,2529.5,1.81522]
[1724902465078,3.1234075,2529.8,2529.6,0.39521]
[1724902465771,3.1234075,2529.8,2529.7,0.3952]
[1724902466078,3.1234075,2529.8,2529.6,0.39521]
[1724902466574,3.1234075,2529.8,2529.2,0.3777]
[1724902466575,11.26243,2529.7,2528.8,1.02501279]
[1724902466788,11.26243,2529.7,2528.5,1.42]
[1724902466789,1.42,2529.1,2528.5,1.42]
[1724902466967,0.7329,2529.0,2528.5,1.42]
[1724902467376,0.3541,2529.0,2528.9,0.39532]
[1724902467775,0.3541,2529.0,2528.9,0.75092]
[1724902467976,3.2078,2529.2,2528.9,13.73]
[1724902468170,3.2078,2529.2,2529.0,0.3953]
[1724902468669,3.2078,2529.2,2529.1,0.39529]
[1724902469277,3.2078,2529.2,2529.1,4.34889]
[1724902469666,0.3723,2529.3,2529.1,4.34889]
[1724902469870,0.3723,2529.3,2529.1,0.39529]
[1724902471373,0.3723,2529.3,2529.2,0.39528]
[1724902471773,0.3723,2529.3,2529.1,0.39529]
[1724902472373,0.3723,2529.3,2529.2,0.39528]
[1724902473783,0.3723,2529.3,2529.1,0.39528]
[1724902474694,0.3723,2529.3,2529.0,0.3953]
[1724902475085,0.3723,2529.3,2529.1,0.39529]
[1724902475883,0.3723,2529.3,2529.2,0.39528]
[1724902476685,0.3723,2529.3,2529.1,0.39528]
[1724902479995,0.3723,2529.3,2529.2,0.39528]
[1724902480187,3.5652,2529.4,2529.3,0.39526]
[1724902480895,3.2078,2529.4,2529.3,0.39526]
[1724902483293,3.2078,2529.4,2529.3,4.34886]
[1724902484288,0.3877,2529.8,2529.7,0.3952]
[1724902488696,3.2078,2529.9,2529.8,0.39518]
[1724902493211,3.2078,2529.9,2529.8,1.81518]
[1724902493821,3.2078,2530.6,2530.5,0.39508]
[1724902494009,0.3794,2530.9,2530.7,0.39504]
[1724902494315,0.357,2530.8,2530.7,0.39504]
[1724902494511,0.3794,2530.9,2530.6,0.3757]
[1724902494512,0.3794,2530.9,2530.8,0.39503]
[1724902494713,3.5648,2531.1,2531.0,0.395]
[1724902495212,3.5648,2531.1,2530.8,0.00592768]
[1724902495703,1.42,2531.0,2530.8,0.00592768]
[1724902495904,1.42,2531.0,2530.9,0.39501]
[1724902496108,3.5648,2531.1,2530.9,0.39501]
[1724902501216,3.5648,2531.1,2531.0,0.395]
[1724902501524,3.2078,2531.1,2531.0,0.395]
[1724902501721,3.2078,2531.1,2531.0,4.3462]
[1724902505619,0.351,2531.2,2531.1,0.39498]
[1724902505823,3.5588,2531.2,2531.1,0.39498]
[1724902506126,3.5588,2531.2,2531.1,4.34538]
[1724902506317,3.9378,2531.2,2531.1,0.39498]
[1724902507217,0.73,2531.2,2531.1,0.39498]
[1724902508018,0.00592768,2531.3,2531.2,0.39497]
[1724902508224,0.00592768,2531.3,2531.2,1.11957]
[1724902509516,0.00592768,2531.3,2531.2,0.75977]
[1724902522634,0.00592768,2531.3,2531.2,4.71017]
[1724902523136,0.00592768,2531.3,2531.2,14.90539]
[1724902523323,0.00592768,2531.3,2531.2,15.89281]
[1724902523527,7.68e-06,2531.3,2531.2,15.89281]
[1724902525438,7.68e-06,2531.3,2531.2,8.90539]
[1724902529935,7.68e-06,2531.3,2531.2,7.91797]
[1724902534034,7.68e-06,2531.3,2531.2,0.75977]
[1724902535242,7.68e-06,2531.3,2531.2,4.71017]
[1724902536339,7.68e-06,2531.3,2531.1,1.81497]
[1724902536539,7.68e-06,2531.3,2531.1,1.42]
[1724902537041,7.68e-06,2531.3,2531.2,0.39497]
[1724902540044,7.68e-06,2531.3,2531.2,0.78237]
[1724902541137,7.68e-06,2531.3,2531.2,11.72019]
[1724902541537,7.68e-06,2531.3,2531.2,15.91541]
[1724902541937,7.68e-06,2531.3,2531.2,8.92799]
[1724902542133,7.68e-06,2531.3,2531.2,4.97759]
[1724902542350,7.68e-06,2531.3,2531.2,8.92799]
[1724902542648,7.68e-06,2531.3,2531.2,5.72019]
[1724902542839,7.68e-06,2531.3,2531.2,11.72019]
[1724902543040,7.68e-06,2531.3,2531.2,5.72019]
[1724902543245,7.68e-06,2531.3,2531.2,11.72019]
[1724902543445,7.68e-06,2531.3,2531.2,4.34537]
[1724902545542,7.68e-06,2531.3,2531.2,0.39497]
[1724902545739,7.68e-06,2531.3,2531.2,4.34537]
[1724902547343,7.68e-06,2531.3,2531.2,14.54059]
[1724902549455,7.68e-06,2531.3,2531.2,15.52801]
[1724902549642,0.7299,2532.0,2531.9,0.39486]
[1724902549842,0.7299,2532.0,2531.9,1.81486]
[1724902567259,3.9377,2532.0,2531.9,1.81486]
[1724902568261,7.8873,2532.0,2531.9,1.81486]
[1724902568451,7.8873,2532.0,2531.9,0.39486]
[1724902572267,7.8873,2532.0,2531.8,1.81487]
[1724902572563,0.367,2531.9,2531.8,1.81487]
[1724902573564,4.3166,2531.9,2531.8,0.39487]
[1724902573862,4.71146,2531.9,2531.6,0.3949]
[1724902574163,3.2078,2531.7,2531.6,1.8149]
[1724902575159,3.2078,2531.7,2531.5,0.39491]
[1724902575160,13.1574,2531.7,2531.5,0.39491]
[1724902575358,0.7272,2531.6,2531.5,0.39491]
[1724902575571,4.6776,2531.6,2531.5,0.39491]
[1724902576163,4.6776,2531.6,2531.4,1.81492]
[1724902576362,0.3848,2531.5,2531.4,1.81492]
[1724902576657,0.3848,2531.5,2531.3,0.39494]
[1724902577268,0.3848,2531.5,2531.3,0.39495]
[1724902577467,0.3848,2531.5,2531.2,1.42]
[1724902577668,0.3848,2531.5,2531.4,0.39493]
[1724902578061,4.3352,2531.5,2531.4,0.39493]
[1724902579069,4.3352,2531.5,2531.3,0.39494]
[1724902579267,0.3848,2531.5,2531.3,0.39494]
[1724902579472,4.3352,2531.5,2531.3,0.39494]
[1724902580472,3.9504,2531.4,2531.3,0.39494]
[1724902580766,7.55314,2531.4,2531.1,0.39498]
[1724902580974,7.55314,2531.4,2531.0,0.39499]
[1724902580975,3.2078,2531.4,2531.0,0.39499]
[1724902581267,3.2078,2531.3,2531.1,0.39498]
[1724902581473,0.7448,2531.2,2531.1,0.39498]
[1724902581657,4.6952,2531.2,2531.1,0.39498]
[1724902583758,3.5788,2531.2,2531.1,0.39498]
[1724902583966,3.2078,2531.2,2531.1,0.39498]
[1724902584274,3.2078,2531.2,2531.1,0.76078]
[1724902584959,3.2078,2531.2,2531.1,4.71118]
[1724902586576,3.2078,2531.2,2531.1,5.69864]
[1724902586768,3.2078,2531.5,2531.1,4.3162]
[1724902586972,3.2078,2531.5,2531.4,0.39493]
[1724902587165,3.2078,2531.5,2531.4,42.61493]
[1724902587673,3.2078,2531.5,2531.4,42.22]
[1724902587870,3.2078,2531.5,2531.4,42.61493]
[1724902588268,3.2078,2531.5,2531.4,40.8]
[1724902588472,3.2078,2531.5,2531.2,0.39496]
[1724902588771,3.2078,2531.5,2531.1,2.18077]
[1724902588772,0.3589,2531.4,2531.1,2.18077]
[1724902588971,0.3589,2531.4,2531.2,41.19497]
[1724902589176,0.3589,2531.4,2531.2,0.39497]
[1724902589562,0.3589,2531.4,2531.3,0.39495]
[1724902589967,0.3589,2531.4,2531.2,0.39496]
[1724902590472,0.3589,2531.4,2531.1,42.5858]
[1724902590676,0.3589,2531.4,2531.3,0.39495]
[1724902591371,3.2078,2531.5,2531.4,0.39493]
[1724902592674,3.2078,2531.5,2531.3,1.81494]
[1724902593672,3.2078,2531.5,2531.4,0.39493]
[1724902594173,7.1582,2531.5,2531.3,1.81494]
[1724902594375,3.2078,2531.5,2531.4,0.39493]
[1724902594875,7.1582,2531.5,2531.4,0.39493]
[1724902595868,3.2078,2531.5,2531.4,0.39493]
[1724902596378,3.2078,2531.5,2531.4,1.13483]
[1724902597574,3.2078,2531.5,2531.3,1.81494]
[1724902598376,7.1582,2531.5,2531.1,43.35157]
[1724902598579,3.60272,2531.5,2531.1,2.55157]
[1724902598882,3.60272,2531.5,2531.2,0.39496]
[1724902599082,3.2078,2531.5,2531.2,0.39496]
[1724902599582,3.2078,2531.5,2531.1,1.7858]
[1724902599775,3.2078,2531.5,2531.4,0.39493]
[1724902600167,3.2078,2531.5,2531.4,1.13563]
[1724902601081,0.3878,2531.7,2531.5,0.39492]
[1724902601279,0.3878,2531.7,2531.6,0.3706]
[1724902602075,0.3878,2531.7,2531.5,1.42]
[1724902602278,0.354,2531.6,2531.5,1.42]
[1724902602576,0.354,2531.6,2531.5,1.81492]
[1724902602784,0.354,2531.6,2531.5,2.18552]
[1724902602985,0.354,2531.6,2531.5,1.7906]
[1724902603181,0.354,2531.6,2531.5,0.3706]
[1724902603380,10.6993,2531.6,2531.2,1.81496]
[1724902603571,3.2078,2531.5,2531.2,1.81496]
[1724902603982,0.3658,2531.4,2531.2,1.81496]
[1724902604286,0.3658,2531.4,2531.2,1.42]
[1724902604472,0.3658,2531.4,2531.1,0.39498]
[1724902604473,3.9504,2531.3,2531.1,0.39498]
[1724902604786,3.5665,2531.2,2531.0,2.20268]
[1724902607380,3.5665,2531.2,2531.0,0.3877]
[1724902607587,3.5665,2531.2,2531.0,0.78269]
[1724902608685,4.3073,2531.1,2530.8,0.00592768]
[1724902608881,3.2078,2530.9,2530.8,0.00592768]
[1724902609791,3.2078,2530.9,2530.8,0.40095768]
[1724902609989,3.2078,2530.9,2530.8,1.82095768]
[1724902611098,3.5665,2531.2,2530.9,0.39501]
[1724902611283,3.9303,2531.2,2531.0,1.81499]
[1724902611485,3.9303,2531.2,2531.0,1.42]
[1724902611787,7.8815,2531.2,2531.0,1.42]
[1724902612292,7.8815,2531.2,2531.0,1.81499]
[1724902612985,3.9303,2531.2,2531.0,1.81499]
[1724902613185,7.8815,2531.2,2531.0,1.81499]
[1724902613587,7.8815,2531.2,2531.0,1.42]
[1724902613890,7.8815,2531.2,2531.0,0.39499]
[1724902614497,7.8815,2531.2,2530.9,0.395]
[1724902614696,3.9303,2531.2,2530.9,0.395]
[1724902615589,3.9303,2531.2,2531.0,0.395]
[1724902616093,7.8815,2531.2,2531.0,0.395]
[1724902616488,7.8815,2531.2,2531.1,0.39498]
[1724902616699,3.9303,2531.2,2531.1,0.39498]
[1724902616883,7.8807,2531.2,2531.1,0.39498]
[1724902618786,8.27567,2531.2,2530.9,0.395]
[1724902618987,8.27567,2531.2,2530.8,0.40094768]
[1724902618988,0.395,2531.0,2530.8,0.40094768]
[1724902619196,3.9303,2531.2,2530.8,0.40094768]
[1724902619197,3.5615,2530.9,2530.8,0.40094768]
[1724902619381,3.9426,2530.9,2530.8,0.40094768]
[1724902620999,3.5889,2530.9,2530.8,0.40094768]
[1724902624002,0.3811,2530.9,2530.8,0.40094768]
[1724902624297,0.3811,2530.9,2530.8,0.75274768]
[1724902624498,0.3811,2530.9,2530.8,1.12074768]
[1724902625493,3.2078,2531.0,2530.9,0.39501]
[1724902629003,3.2078,2531.0,2530.8,1.12074768]
[1724902629194,3.2078,2531.0,2530.8,0.40094768]
[1724902629397,0.3537,2530.9,2530.8,0.00592768]
[1724902630202,4.3049,2530.9,2530.8,0.00592768]
[1724902630904,3.2078,2531.0,2530.8,0.00592768]
[1724902631090,3.2078,2531.0,2530.9,0.39501]
[1724902631296,3.2078,2531.0,2530.9,0.77091]
[1724902631904,3.2078,2531.0,2530.9,0.3759]
[1724902632606,3.2078,2531.0,2530.9,0.77091]
[1724902633201,3.5621,2531.3,2530.9,0.753]
[1724902633512,3.2078,2531.3,2530.9,4.173]
[1724902633699,3.2078,2531.3,2531.2,0.39497]
[1724902634005,3.2078,2531.3,2531.2,1.81497]
[1724902635794,0.7536,2531.5,2531.3,0.39494]
[1724902635994,0.7536,2531.5,2531.4,0.3577]
[1724902638401,0.7536,2531.5,2531.4,0.75263]
[1724902638604,0.7536,2531.5,2531.4,0.3577]
[1724902639800,0.7536,2531.5,2531.4,0.75263]
[1724902653419,0.7536,2531.5,2531.3,0.39494]
[1724902653615,0.7536,2531.5,2531.4,0.39493]
[1724902654820,0.39494,2531.4,2530.8,4.40347768]
[1724902655023,3.2078,2531.2,2530.8,4.40347768]
[1724902655211,0.3568,2531.1,2530.8,4.40347768]
[1724902655519,0.388,2531.0,2530.9,0.39501]
[1724902657823,0.3563,2531.1,2531.0,0.395]
[1724902658024,0.3563,2531.1,2531.0,0.7805]
[1724902658326,0.3563,2531.1,2531.0,1.1683]
[1724902659126,0.3563,2531.1,2531.0,0.7828]
[1724902660526,0.3563,2531.1,2531.0,0.395]
[1724902661626,0.3563,2531.1,2531.0,0.7525]
[1724902662325,0.3563,2531.1,2530.9,1.815]
[1724902662529,0.3611,2531.0,2530.9,1.815]
[1724902663426,0.3611,2531.0,2530.9,0.395]
[1724902664629,0.3611,2531.0,2530.8,2.17844768]
[1724902664826,0.3611,2531.0,2530.8,1.82094768]
[1724902665026,3.5928,2530.9,2530.8,1.42592768]
[1724902665230,3.5928,2530.9,2530.8,0.40095768]
[1724902667936,3.5928,2530.9,2530.8,0.00592768]
[1724902668144,3.98781,2530.9,2530.8,0.00592768]
[1724902668749,3.5928,2530.9,2530.8,0.00592768]
[1724902668942,3.98781,2530.9,2530.8,0.00592768]
[1724902670953,3.5928,2530.9,2530.8,0.00592768]
[1724902671946,0.385,2530.9,2530.8,0.00592768]
[1724902672145,3.98781,2530.9,2530.8,0.00592768]
[1724902674845,3.5928,2530.9,2530.8,0.00592768]
[1724902675048,3.5928,2530.9,2530.8,0.40095768]
[1724902677647,3.2078,2530.9,2530.8,0.40095768]
[1724902678653,3.2078,2530.9,2530.8,0.75505768]
[1724902678955,3.2078,2530.9,2530.8,1.14255768]
[1724902681758,0.3563,2531.1,2530.8,1.14255768]
[1724902681949,3.2078,2530.9,2530.8,1.14255768]
[1724902684856,3.2078,2530.9,2530.8,11.09375768]
[1724902685057,3.2078,2530.9,2530.8,12.51375768]
[1724902686252,3.2078,2531.4,2531.2,0.39496]
[1724902686554,3.2078,2531.4,2531.3,0.77035]
[1724902686754,3.2078,2531.4,2531.3,1.51535]
[1724902688555,3.2078,2531.4,2531.3,0.77035]
[1724902688957,3.2078,2531.4,2531.3,0.3754]
[1724902689157,3.2078,2531.4,2531.3,0.77035]
[1724902691361,3.2078,2531.4,2531.3,0.3754]
[1724902691957,3.2078,2531.4,2531.2,1.81496]
[1724902692159,3.2078,2531.4,2531.2,0.39496]
[1724902692962,1.0911,2531.5,2531.2,0.39496]
[1724902693263,3.2078,2531.4,2531.2,0.39496]
[1724902693861,1.0911,2531.5,2531.2,0.39496]
[1724902694062,3.2078,2531.4,2531.2,0.39496]
[1724902694662,3.2078,2531.4,2531.3,0.39495]
[1724902694965,1.48602,2531.5,2531.3,0.39495]
[1724902695266,3.2078,2531.4,2531.3,0.39495]
[1724902695455,1.48602,2531.5,2531.3,0.39495]
[1724902695765,3.2078,2531.4,2531.3,0.39495]
[1724902701062,1.0911,2531.5,2531.3,0.39495]
[1724902701263,3.2078,2531.4,2531.3,0.39495]
[1724902702462,3.2078,2531.4,2531.2,0.39495]
[1724902702659,4.6278,2531.4,2531.0,0.3863]
[1724902702864,3.2078,2531.1,2531.0,0.39499]
[1724902703065,5.02274,2531.4,2531.0,0.3878]
[1724902703277,3.60274,2531.4,2531.0,1.0888]
[1724902703475,3.60274,2531.4,2531.1,0.39498]
[1724902704276,3.2078,2531.4,2531.2,0.39496]
[1724902704765,7.1582,2531.4,2531.2,0.39496]
[1724902706070,7.55314,2531.4,2531.2,0.39496]
[1724902706271,3.60274,2531.4,2531.1,0.39497]
[1724902707368,3.60274,2531.4,2531.2,0.39496]
[1724902710070,3.2078,2531.4,2531.3,0.39495]
[1724902710576,7.1582,2531.4,2531.3,0.39495]
[1724902711167,3.2078,2531.4,2531.3,0.39495]
[1724902712067,3.60273,2531.4,2531.2,0.39496]
[1724902712276,3.2078,2531.4,2531.3,0.39495]
[1724902712772,3.2078,2531.4,2531.3,1.81495]
[1724902712969,0.3717,2531.5,2531.4,0.39493]
[1724902713175,0.3717,2531.5,2531.4,1.81493]
[1724902713374,3.2078,2531.7,2531.6,0.3949]
[1724902713776,7.1574,2531.7,2531.6,0.3949]
[1724902714580,3.2078,2531.7,2531.6,5.7645]
[1724902714788,3.2078,2532.0,2531.9,0.39484]
[1724902714971,3.2078,2532.0,2531.9,1.81484]
[1724902716077,3.2078,2532.0,2531.8,0.39487]
[1724902716273,0.7122,2531.9,2531.7,0.39488]
[1724902716577,1.42,2531.8,2531.1,4.6278]
[1724902716781,3.2078,2531.7,2531.4,0.39492]
[1724902716976,3.98299,2531.7,2531.4,0.39493]
[1724902717567,3.5881,2531.7,2531.4,0.39493]
[1724902717975,3.5881,2531.7,2531.5,0.39492]
[1724902718280,0.39491,2531.6,2531.3,0.39494]
[1724902718481,3.2078,2531.4,2531.3,0.39494]
[1724902719175,3.5666,2531.4,2531.3,0.39494]
[1724902719777,3.5666,2531.4,2531.1,2.5149]
[1724902719778,7.91194,2531.4,2531.1,0.77347]
[1724902719978,0.3874,2531.3,2531.1,0.77347]
[1724902721078,0.39497,2531.2,2530.9,0.39501]
[1724902721280,0.78236,2531.3,2531.0,0.39499]
[1724902721870,0.3874,2531.3,2531.2,0.39497]
[1724902722178,3.2078,2531.4,2530.9,1.7842]
[1724902722376,3.2078,2531.4,2531.3,0.39495]
[1724902723077,3.2078,2531.4,2531.1,0.39497]
[1724902723270,0.3688,2531.3,2531.1,0.39497]
[1724902723581,0.12350228,2531.2,2531.1,0.39497]
[1724902723782,0.47740228,2531.2,2531.1,0.39497]
[1724902725470,0.12350228,2531.2,2531.1,0.39497]
[1724902726079,0.12350228,2531.2,2531.1,4.34537]
[1724902726279,0.12350228,2531.2,2531.1,5.76537]
[1724902727684,0.12350228,2531.2,2531.1,11.76537]
[1724902728072,3.2078,2531.4,2531.3,0.39495]
[1724902728274,3.33128672,2531.4,2531.3,1.81495]
[1724902728472,3.33128672,2531.4,2531.3,5.76535]
[1724902728676,0.12348672,2531.4,2531.3,2.17085]
[1724902728877,0.12348672,2531.4,2531.3,6.12125]
[1724902729077,0.12348672,2531.4,2531.3,6.47795]
[1724902730184,0.7207,2531.6,2531.4,0.39492]
[1724902730784,0.12348637,2531.5,2531.4,0.39492]
[1724902732686,0.12348637,2531.5,2531.4,4.34532]
[1724902733887,3.2078,2531.7,2531.6,0.3949]
[1724902734088,3.3312839,2531.7,2531.6,0.3949]
[1724902737686,3.3312839,2531.7,2531.6,4.3445]
[1724902738095,3.3312839,2531.7,2531.6,5.1023]
[1724902738388,0.1234839,2531.7,2531.6,5.1023]
[1724902738986,0.1234839,2531.7,2531.6,1.1527]
[1724902740090,0.1234839,2531.7,2531.6,5.1023]
[1724902740394,0.3803,2531.9,2531.6,4.7074]
[1724902740584,0.12347915,2531.7,2531.6,1.1527]
[1724902740887,0.3803,2531.9,2531.8,0.39487]
[1724902741288,0.50377266,2531.9,2531.8,0.39487]
[1724902742994,0.50377255,2531.9,2531.8,0.39487]
[1724902744093,0.50377253,2531.9,2531.7,0.39488]
[1724902744288,0.12347253,2531.8,2531.7,0.39488]
[1724902745696,0.12347253,2531.8,2531.6,0.76479]
[1724902745996,3.70838086,2531.7,2531.5,0.39491]
[1724902746198,0.12348086,2531.6,2531.4,0.39492]
[1724902746399,0.7576,2531.5,2531.4,0.39492]
[1724902746597,0.88108895,2531.5,2531.4,0.39492]
[1724902748595,0.88108895,2531.5,2531.3,0.76524]
[1724902748800,3.71598895,2531.4,2531.2,0.39495]
[1724902749101,0.12348895,2531.3,2531.2,0.39497]
[1724902750197,0.12349469,2531.3,2531.2,0.39497]
[1724902753203,0.51844585,2531.3,2531.1,0.39497]
[1724902753506,0.12349585,2531.2,2531.1,0.39498]
[1724902754304,0.12349585,2531.2,2531.1,5.76538]
[1724902754695,0.12349585,2531.2,2531.1,1.81498]
[1724902756398,3.5925,2531.4,2531.1,1.81498]
[1724902756796,0.12350094,2531.3,2531.1,1.81498]
[1724902756995,0.12350094,2531.2,2531.1,1.81498]
[1724902757196,3.5925,2531.4,2531.2,0.39497]
[1724902757495,0.12350014,2531.3,2531.2,0.39497]
[1724902759403,0.12350014,2531.3,2531.2,0.77137]
[1724902759809,0.12350014,2531.3,2531.2,0.39497]
[1724902761202,3.33130281,2531.3,2531.2,0.39497]
[1724902762508,3.33130281,2531.3,2531.1,0.39498]
[1724902762705,0.12350281,2531.2,2531.0,0.39499]
[1724902762901,1.12768,2531.1,2530.8,0.76574768]
[1724902763205,0.12350281,2531.0,2530.8,0.76574768]
[1724902763409,0.49000281,2531.0,2530.8,0.76574768]
[1724902763603,0.12350281,2530.9,2530.8,0.76574768]
[1724902769507,3.2078,2531.3,2531.0,0.395]
[1724902769713,0.12350798,2531.2,2531.0,1.81499]
[1724902769915,3.2078,2531.3,2531.0,1.81499]
[1724902770113,0.12350885,2531.1,2531.0,1.81499]
[1724902771112,0.12350885,2531.1,2531.0,0.39499]
[1724902773312,3.60277,2531.2,2530.9,0.395]
[1724902773506,0.3873,2531.0,2530.9,0.395]
[1724902773812,0.51080968,2531.0,2530.9,0.395]
[1724902774007,1.25570968,2531.0,2530.9,0.395]
[1724902774208,1.25570968,2531.0,2530.8,0.76574768]
[1724902774410,0.12350968,2530.9,2530.8,0.76574768]
[1724902774716,0.12350968,2530.9,2530.8,0.37072768]
[1724902775419,0.12350968,2530.9,2530.8,0.76575768]
[1724902775624,0.12350968,2530.9,2530.8,0.37072768]
[1724902775920,9.09751968,2530.9,2530.8,0.00592768]
[1724902776224,9.09751968,2530.9,2530.5,0.39507]
[1724902776225,0.39503,2530.8,2530.5,0.39507]
[1724902776421,3.2078,2530.6,2530.5,0.39507]
[1724902776727,3.33130968,2530.6,2530.5,0.39507]
[1724902777420,3.2078,2530.6,2530.5,0.39507]
[1724902778917,3.2078,2530.6,2530.4,1.42]
[1724902779115,3.2078,2530.6,2530.4,1.81509]
[1724902779116,0.3627,2530.5,2530.4,1.81509]
[1724902779320,0.719,2530.5,2530.4,0.39509]
[1724902779527,1.0998,2530.5,2530.3,0.77952768]
[1724902781821,1.0998,2530.5,2530.4,0.39509]
[1724902782226,1.0998,2530.5,2530.3,0.77952768]
[1724902782417,0.51863594,2530.4,2530.3,0.00592768]
[1724902782618,5.89063594,2530.4,2530.3,0.00592768]
[1724902782921,0.39511,2530.3,2529.5,1.13623]
[1724902783127,0.39511,2530.3,2529.5,0.77593]
[1724902783128,3.2078,2529.7,2529.5,0.77593]
[1724902783423,0.3623,2529.6,2529.5,0.77593]
[1724902783725,0.7513,2529.6,2529.5,0.77593]
[1724902783922,0.7513,2529.6,2529.5,0.3807]
[1724902784118,0.7513,2529.6,2529.4,0.39524]
[1724902784322,0.7513,2529.6,2529.3,1.82118768]
[1724902784522,0.7513,2529.6,2529.4,0.39525]
[1724902784724,3.2078,2529.7,2529.5,0.39523]
[1724902784930,3.2078,2529.7,2529.3,1.82117768]
[1724902786932,3.2078,2529.7,2529.5,0.39523]
[1724902787934,3.2078,2529.7,2529.4,0.39524]
[1724902788327,3.2078,2529.7,2529.5,0.39523]
[1724902789034,3.2078,2529.6,2529.5,0.39523]
[1724902790031,3.2078,2529.6,2529.5,5.76883]
[1724902790231,0.389,2529.8,2529.7,0.3952]
[1724902792228,0.389,2529.8,2529.6,1.1037]
[1724902792229,0.389,2529.8,2529.6,0.75491]
[1724902792434,0.3817,2529.7,2529.6,0.75491]
[1724902793039,0.389,2529.8,2529.6,0.75491]
[1724902794132,3.2078,2529.9,2529.8,0.39518]
[1724902794525,3.2078,2529.9,2529.8,41.19518]
[1724902794732,3.2078,2529.9,2529.8,41.58378]
[1724902799436,3.2078,2529.9,2529.8,46.95658]
[1724902799736,3.2078,2529.9,2529.8,53.94455]
[1724902799941,3.9725,2530.3,2530.2,0.39512]
[1724902800943,3.9725,2530.3,2530.2,0.75792]
[1724902801742,3.2078,2530.3,2530.2,1.11292]
[1724902802143,3.2078,2530.3,2530.2,2.53292]
[1724902802435,0.3654,2530.5,2530.4,0.39509]
[1724902804733,3.2078,2530.6,2530.4,0.39509]
[1724902805643,0.3851,2530.5,2530.3,0.7509]
[1724902806043,0.3793,2530.4,2530.3,0.7509]
[1724902808239,0.3793,2530.4,2530.3,0.3951]
[1724902811838,3.5929,2530.5,2530.2,0.7178]
[1724902812039,3.5929,2530.5,2530.4,0.39509]
[1724902812040,3.2078,2530.5,2530.4,0.39509]
[1724902815044,0.7427,2530.7,2530.5,0.39507]
[1724902815244,3.2078,2530.6,2530.5,0.39507]
[1724902818747,3.2078,2530.6,2530.5,5.76707]
[1724902822449,0.00592768,2530.8,2530.7,0.39504]
[1724902824557,0.12945107,2530.8,2530.7,0.39504]
[1724902826861,0.00592768,2530.8,2530.7,0.39504]
[1724902827370,0.12945102,2530.8,2530.7,0.39504]
[1724902829052,5.50065102,2530.8,2530.5,0.39507]
[1724902829260,0.49972334,2530.7,2530.6,0.39506]
[1724902829652,4.45092334,2530.7,2530.6,0.39506]
[1724902830562,4.45093089,2530.7,2530.6,0.39506]
[1724902831551,4.45093089,2530.7,2530.2,0.3739]
[1724902831861,3.2078,2530.4,2530.3,0.39511]
[1724902832552,3.33134343,2530.4,2530.1,0.389]
[1724902832752,0.12354624,2530.3,2529.9,4.191]
[1724902832953,0.12354624,2530.3,2530.0,0.39515]
[1724902832954,3.2078,2530.1,2530.0,0.39515]
[1724902833465,3.9433,2530.1,2530.0,0.39515]
[1724902834061,4.06685675,2530.1,2530.0,0.39515]
[1724902834261,4.06685675,2530.1,2529.9,0.39516]